bitfinex/quotes_SOLUSD_20240902
["timestamp","ask_amount","ask_price","bid_price","bid_amount"]
[1725265478063,70.78289534,130.1,130.03,19.2259]
[1725265478968,7.6876,130.08,130.03,26.9159]
[1725265479142,70.78289534,130.1,130.03,19.2259]
[1725265479343,7.687,130.09,130.03,19.2259]
[1725265479662,78.46979534,130.1,130.04,7.6898]
[1725265479964,29.96183543,130.08,130.03,26.9163]
[1725265480161,37.64953543,130.08,130.03,26.9163]
[1725265480662,29.96183543,130.08,130.03,7.6899]
[1725265480865,29.96183543,130.08,130.04,7.6899]
[1725265481167,7.6882,130.07,130.02,26.9178]
[1725265481950,35.61131542,130.07,130.02,26.9178]
[1725265483266,27.92311542,130.07,130.03,7.6905]
[1725265484773,7.6916,130.02,129.96,7.6946]
[1725265484945,27.92311542,130.0,129.95,7.6951]
[1725265485462,35.61571542,130.0,129.95,7.6951]
[1725265485660,27.92311542,130.02,129.98,7.6933]
[1725265485974,7.6912,130.02,129.97,7.6938]
[1725265486165,15.3363,130.06,129.98,19.2327]
[1725265486351,23.0255,130.06,130.0,7.6917]
[1725265486700,37.63013226,130.05,130.0,7.6917]
[1725265487249,29.94083226,130.07,130.0,19.2296]
[1725265487470,70.76189217,130.09,130.0,19.2296]
[1725265487670,7.6876,130.08,130.02,7.6906]
[1725265487857,7.6876,130.08,130.0,19.2296]
[1725265487858,7.6876,130.08,130.03,7.6903]
[1725265488058,70.76189217,130.09,130.02,19.2266]
[1725265488059,29.94083226,130.09,130.02,19.2266]
[1725265488258,29.94083226,130.13,129.99,29.94083226]
[1725265488579,29.94083226,130.13,130.07,7.6881]
[1725265488951,29.94083226,130.13,130.01,38.4576]
[1725265488952,7.6864,130.1,130.04,7.6899]
[1725265489162,29.94083226,130.09,130.04,7.6899]
[1725265489580,29.94083226,130.09,130.05,7.6892]
[1725265489765,29.94083226,130.13,130.05,19.222]
[1725265489766,29.94083226,130.11,130.05,19.222]
[1725265490085,6.0033,130.16,130.05,44.5807]
[1725265490252,29.94083226,130.16,130.05,44.5807]
[1725265490450,29.94083226,130.16,130.12,19.2116]
[1725265491156,29.94083226,130.16,130.12,26.8966]
[1725265491455,0.8374926,130.18,130.12,19.2116]
[1725265491680,30.77832486,130.18,130.14,7.6839]
[1725265492383,0.8374926,130.18,130.14,19.2087]
[1725265492591,0.8374926,130.18,130.15,7.6831]
[1725265494281,0.8374926,130.18,130.14,19.2087]
[1725265494779,0.8374926,130.18,130.17,26.8878]
[1725265497579,0.8374926,130.18,130.17,19.2056]
[1725265497768,0.8374926,130.18,130.16,7.6828]
[1725265498672,0.8374926,130.18,130.13,6.2768]
[1725265498673,0.8374926,130.18,130.17,26.8878]
[1725265500984,14.078,130.28,130.24,7.6779]
[1725265500985,29.94083226,130.28,130.24,7.6779]
[1725265501655,29.94083226,130.28,130.23,19.1964]
[1725265501856,7.6763,130.27,130.2,26.8809]
[1725265502168,37.61803226,130.26,130.21,7.6797]
[1725265502877,29.94083226,130.28,130.23,7.6785]
[1725265503257,37.61653226,130.28,130.23,7.6785]
[1725265503766,37.61543226,130.3,130.22,19.1971]
[1725265503964,0.8374926,130.31,130.26,7.6768]
[1725265504278,8.5116926,130.31,130.26,7.6768]
[1725265504588,0.8374926,130.31,130.26,7.6768]
[1725265504970,0.8374926,130.31,130.27,7.6762]
[1725265505279,0.8374926,130.31,130.26,7.6769]
[1725265505280,8.5114926,130.31,130.26,7.6769]
[1725265506092,8.5114926,130.31,130.25,26.8712]
[1725265506261,8.5114926,130.31,130.26,7.6767]
[1725265506592,8.5114926,130.31,130.25,19.1938]
[1725265506593,0.8374926,130.31,130.25,19.1938]
[1725265507283,0.8374926,130.31,130.28,7.6756]
[1725265507472,0.8374926,130.31,130.27,19.1896]
[1725265507670,0.8374926,130.31,130.27,26.8659]
[1725265508079,0.8374926,130.31,130.24,19.1949]
[1725265509071,7.6757,130.29,130.24,26.8724]
[1725265509297,29.94083226,130.26,130.19,7.6809]
[1725265509590,29.94083226,130.26,130.14,6.4011]
[1725265509591,37.61893226,130.24,130.18,26.8851]
[1725265509797,7.6789,130.23,130.18,26.8851]
[1725265510288,7.6799,130.21,130.16,7.6827]
[1725265510592,49.13323226,130.26,130.14,25.6108]
[1725265510593,29.94083226,130.22,130.14,25.6108]
[1725265510773,29.94083226,130.24,130.14,25.6108]
[1725265510970,29.94083226,130.24,130.19,7.681]
[1725265511169,7.6775,130.25,130.17,19.2052]
[1725265511366,7.6775,130.25,130.18,7.6811]
[1725265511571,7.6781,130.24,130.18,7.6811]
[1725265511789,7.68,130.21,130.14,6.4011]
[1725265512587,70.76189217,130.2,130.13,19.2103]
[1725265512893,7.681,130.19,130.14,7.684]
[1725265513192,37.62133226,130.2,130.14,7.684]
[1725265514477,78.44239217,130.2,130.14,7.684]
[1725265514795,37.62133226,130.2,130.14,7.684]
[1725265514984,37.62133226,130.2,130.15,7.6834]
[1725265515285,78.44239217,130.2,130.14,7.6839]
[1725265515497,37.62133226,130.2,130.14,7.6839]
[1725265515967,70.76189217,130.2,130.15,7.6833]
[1725265516170,29.94083226,130.2,130.15,7.6833]
[1725265516991,37.61893226,130.25,130.16,19.2067]
[1725265517174,7.6792,130.23,130.16,26.889]
[1725265517367,7.6806,130.2,130.16,19.2067]
[1725265518095,29.94083226,130.21,130.16,19.2067]
[1725265518298,29.94083226,130.23,130.16,19.2067]
[1725265518501,7.6781,130.24,130.16,19.2067]
[1725265518792,37.61833226,130.25,130.2,7.6804]
[1725265518997,48.49815991,130.26,130.2,26.8803]
[1725265519176,7.6788,130.23,130.18,6.1385]
[1725265519372,7.6788,130.23,130.17,26.8874]
[1725265519373,40.82105991,130.23,130.17,26.8874]
[1725265519582,70.76189217,130.21,130.14,19.2099]
[1725265519882,70.76189217,130.21,130.14,26.8936]
[1725265519883,37.62193226,130.19,130.14,26.8936]
[1725265520597,7.6817,130.18,130.14,19.2099]
[1725265521167,37.62203226,130.19,130.14,26.8938]
[1725265522184,29.94083226,130.15,130.1,26.9015]
[1725265522372,29.94083226,130.16,130.1,19.2152]
[1725265522571,29.94083226,130.16,130.11,7.6856]
[1725265522788,7.6822,130.17,130.12,7.6851]
[1725265522987,29.94083226,130.18,130.12,7.6851]
[1725265523299,37.62273226,130.18,130.12,7.6851]
[1725265523908,29.94083226,130.18,130.12,19.2118]
[1725265524219,37.62173226,130.2,130.14,7.6835]
[1725265524690,7.6812,130.19,130.14,7.6835]
[1725265524877,7.6812,130.19,130.13,7.6845]
[1725265525075,29.94083226,130.18,130.12,19.2118]
[1725265525274,29.94083226,130.16,130.1,7.6859]
[1725265525582,29.94083226,130.16,130.09,26.9042]
[1725265525583,7.684,130.14,130.09,26.9042]
[1725265526097,29.94083226,130.14,130.07,7.6876]
[1725265526274,29.94083226,130.08,130.02,14.2664]
[1725265526474,37.62893226,130.08,130.03,19.2261]
[1725265526680,37.62893226,130.08,130.03,26.9164]
[1725265527201,37.62843226,130.08,130.03,7.6902]
[1725265527574,37.62723226,130.1,130.05,7.6889]
[1725265527777,29.94083226,130.1,130.05,7.6889]
[1725265527976,29.94083226,130.12,130.05,19.2222]
[1725265528301,29.94083226,130.12,130.07,7.688]
[1725265528874,29.94083226,130.12,130.05,19.2222]
[1725265529093,29.94083226,130.14,130.08,26.906]
[1725265529684,7.6848,130.13,130.08,19.2185]
[1725265529892,29.94083226,130.12,130.05,19.2232]
[1725265530194,40.82105991,130.13,130.05,19.2232]
[1725265530399,29.94083226,130.1,130.05,26.912]
[1725265530794,29.94083226,130.1,130.05,19.2232]
[1725265531299,29.94083226,130.1,130.06,7.6885]
[1725265531502,37.62743226,130.1,130.05,26.9123]
[1725265531677,29.94083226,130.1,130.07,7.6879]
[1725265532003,29.94083226,130.1,130.05,19.2232]
[1725265532203,29.94083226,130.1,130.06,7.6886]
[1725265533079,37.62723226,130.1,130.05,19.2232]
[1725265533786,29.94083226,130.1,130.03,7.6904]
[1725265533990,7.6886,130.07,130.02,26.9187]
[1725265534187,29.94083226,130.06,130.02,26.9187]
[1725265534391,37.62953226,130.06,130.02,19.2277]
[1725265534702,29.94083226,130.06,130.02,26.9187]
[1725265535601,29.94083226,130.08,130.02,19.2277]
[1725265535908,37.62773226,130.1,130.04,7.6893]
[1725265536296,37.62773226,130.1,130.05,7.6889]
[1725265537695,29.94083226,130.1,130.06,7.6886]
[1725265538707,37.62603226,130.12,130.07,7.6881]
[1725265540495,7.686,130.11,130.06,7.6886]
[1725265540685,29.94083226,130.1,130.04,26.9133]
[1725265540888,40.82105991,130.11,130.04,26.9133]
[1725265540889,29.94083226,130.08,130.04,26.9133]
[1725265541089,37.62833226,130.08,130.04,19.2239]
[1725265541289,7.6881,130.07,130.02,7.691]
[1725265541687,29.94083226,130.08,130.02,7.691]
[1725265541888,37.62963226,130.06,130.01,26.9205]
[1725265542092,29.94083226,130.06,130.02,7.691]
[1725265542289,29.94083226,130.06,130.01,26.9205]
[1725265542587,29.94083226,130.06,130.01,19.2289]
[1725265542982,40.82105991,130.12,130.03,19.2254]
[1725265543190,70.76189217,130.12,129.99,68.40453226]
[1725265543511,29.94083226,130.12,129.99,68.40453226]
[1725265543710,29.94083226,130.12,130.08,7.6875]
[1725265543886,40.82105991,130.11,130.04,19.2246]
[1725265544088,37.62903226,130.07,129.98,6.2847]
[1725265544406,7.69,130.04,129.99,7.6928]
[1725265544608,37.63023226,130.05,130.0,7.6922]
[1725265544911,7.6888,130.06,129.98,25.5179]
[1725265545092,7.6888,130.06,130.01,7.6916]
[1725265545491,29.94083226,130.07,130.01,19.2287]
[1725265545812,29.94083226,130.09,130.03,19.2248]
[1725265545993,29.94083226,130.11,130.05,19.2222]
[1725265546743,21.3643,130.18,130.06,6.4193]
[1725265547017,70.76189217,130.15,130.07,19.2201]
[1725265547318,37.62423226,130.15,130.09,7.6867]
[1725265547701,29.94083226,130.15,130.07,38.4395]
[1725265548007,29.94083226,130.17,130.12,26.8973]
[1725265548199,29.94083226,130.17,130.13,7.6843]
[1725265548405,37.62313226,130.17,130.12,19.2127]
[1725265548591,78.44419217,130.17,130.12,19.2127]
[1725265548792,37.62313226,130.17,130.12,19.2127]
[1725265549710,29.94083226,130.17,130.12,19.2127]
[1725265550013,78.44419217,130.17,130.12,19.2127]
[1725265550384,7.6829,130.16,130.12,19.2127]
[1725265550818,15.0684,130.18,130.09,19.2172]
[1725265550819,7.6846,130.13,130.09,19.2172]
[1725265551125,70.76189217,130.15,130.09,19.2172]
[1725265551126,29.94083226,130.15,130.09,19.2172]
[1725265551302,7.6829,130.16,130.11,7.6857]
[1725265551803,70.76189217,130.17,130.09,19.2172]
[1725265551804,78.44419217,130.17,130.12,7.6852]
[1725265552001,70.76189217,130.17,130.13,7.6845]
[1725265552206,40.82105991,130.17,130.13,7.6845]
[1725265552824,48.50335991,130.17,130.11,26.8986]
[1725265553414,10.18689729,130.21,130.13,19.2103]
[1725265553415,40.82105991,130.2,130.13,19.2103]
[1725265553612,53.79403226,130.22,130.17,7.6822]
[1725265553812,53.79403226,130.22,130.11,38.4284]
[1725265553813,7.6799,130.21,130.15,26.8901]
[1725265553998,7.6799,130.21,130.16,7.6825]
[1725265554197,7.6799,130.21,130.15,19.2072]
[1725265554403,7.6799,130.21,130.15,26.8905]
[1725265555103,7.6799,130.21,130.16,7.6827]
[1725265555520,29.94083226,130.22,130.17,7.6817]
[1725265556109,37.62013226,130.22,130.17,7.6817]
[1725265556525,7.6789,130.23,130.18,7.6815]
[1725265557119,37.61913226,130.24,130.19,7.6808]
[1725265557423,44.6827572,130.27,130.21,7.6793]
[1725265557613,7.6771,130.26,130.21,7.6793]
[1725265557808,7.6771,130.26,130.2,19.2002]
[1725265557809,48.49865991,130.25,130.2,19.2002]
[1725265558010,29.94083226,130.23,130.17,19.2051]
[1725265558239,7.6805,130.2,130.15,7.6833]
[1725265558403,7.6811,130.19,130.14,33.4732]
[1725265558608,37.62193226,130.19,130.14,26.8934]
[1725265559107,29.94083226,130.19,130.15,7.6833]
[1725265559841,29.94083226,130.19,130.14,19.2095]
[1725265560016,37.62193226,130.19,130.14,26.8934]
[1725265560326,29.94083226,130.17,130.11,19.2142]
[1725265560528,29.94083226,130.17,130.12,7.6847]
[1725265560529,37.62303226,130.17,130.12,7.6847]
[1725265560829,29.94083226,130.17,130.11,19.2142]
[1725265561002,29.94083226,130.17,130.12,7.6851]
[1725265561003,37.62353226,130.17,130.12,7.6851]
[1725265561209,7.683,130.16,130.11,19.2142]
[1725265561746,40.82105991,130.16,130.11,19.2142]
[1725265561950,37.62313226,130.17,130.11,26.8994]
[1725265562814,29.94083226,130.17,130.13,7.6844]
[1725265563015,7.6817,130.18,130.13,7.6844]
[1725265563311,40.82105991,130.17,130.13,7.6844]
[1725265563510,40.82105991,130.17,130.12,7.6851]
[1725265563716,7.6817,130.18,130.12,7.6851]
[1725265563919,7.6817,130.18,130.13,7.684]
[1725265564124,40.82105991,130.17,130.11,19.2142]
[1725265565016,48.50325991,130.17,130.12,7.6847]
[1725265567230,48.50325991,130.17,130.11,19.2142]
[1725265567231,7.6858,130.11,130.06,6.409]
[1725265567532,37.62433226,130.15,130.1,7.6863]
[1725265568111,7.6843,130.14,130.08,26.9063]
[1725265568328,40.82105991,130.13,130.08,26.9063]
[1725265568536,40.82105991,130.13,130.08,19.2189]
[1725265568740,7.6857,130.12,130.07,7.688]
[1725265569042,78.44769217,130.11,130.06,7.6886]
[1725265569215,7.6864,130.1,130.05,26.912]
[1725265569412,37.62663226,130.11,130.06,7.6885]
[1725265569623,40.82105991,130.1,130.05,19.2228]
[1725265570017,40.82105991,130.1,130.06,7.6887]
[1725265570224,48.50745991,130.1,130.05,26.9121]
[1725265571552,7.6864,130.1,130.05,26.9121]
[1725265572044,37.62783226,130.09,130.02,19.2272]
[1725265572235,48.50865991,130.08,130.02,19.2272]
[1725265572542,37.62783226,130.09,130.04,7.6898]
[1725265572842,39.63688652,130.13,130.06,7.6887]
[1725265572843,7.6863,130.11,130.06,7.6887]
[1725265573245,40.82105991,130.1,130.06,7.6887]
[1725265573433,37.62803226,130.09,130.04,26.9132]
[1725265575433,40.82105991,130.08,130.03,7.6904]
[1725265575634,29.94083226,130.05,130.01,19.2289]
[1725265576046,40.82105991,130.04,130.01,19.2289]
[1725265576791,40.82105991,130.02,129.96,14.2642]
[1725265577049,29.94083226,130.01,129.97,7.694]
[1725265578334,29.94083226,130.01,129.96,7.6946]
[1725265578534,40.82105991,130.0,129.95,26.9328]
[1725265578935,40.82105991,129.98,129.93,7.6958]
[1725265579133,40.82105991,129.98,129.94,7.6958]
[1725265579348,29.94083226,129.99,129.94,7.6958]
[1725265579752,29.94083226,129.99,129.96,7.6946]
[1725265580131,29.94083226,129.99,129.95,26.9331]
[1725265580341,40.82105991,129.98,129.95,19.238]
[1725265580742,40.82105991,129.98,129.96,7.6945]
[1725265580955,29.94083226,129.99,129.97,7.6939]
[1725265581256,29.94083226,130.03,130.01,7.6913]
[1725265582551,45.97253226,130.05,130.01,19.228]
[1725265583530,29.94083226,130.09,130.08,7.6875]
[1725265583747,22.0642,130.1,130.08,7.6875]
[1725265583748,15.5188,130.1,130.08,7.6875]
[1725265584357,77.30729217,130.13,130.1,7.6863]
[1725265584550,40.82105991,130.11,130.04,45.0477]
[1725265584754,36.48623226,130.13,130.11,7.6857]
[1725265585057,56.06255991,130.14,130.12,7.6852]
[1725265585058,15.2415,130.14,130.12,7.6852]
[1725265585255,29.94083226,130.15,130.13,7.6844]
[1725265585456,40.82105991,130.14,130.13,7.6844]
[1725265586139,29.94083226,130.15,130.13,7.6844]
[1725265586351,29.94083226,130.17,130.14,7.684]
[1725265586572,29.94083226,130.17,130.13,19.2114]
[1725265586573,29.94083226,130.17,130.16,7.6828]
[1725265586860,40.82105991,130.16,130.15,7.6834]
[1725265587155,29.94083226,130.17,130.15,7.6834]
[1725265587366,29.94083226,130.17,130.16,7.6828]
[1725265587655,29.94083226,130.17,130.08,38.4354]
[1725265587656,40.82105991,130.2,130.19,7.681]
[1725265588165,26.75379729,130.23,130.2,7.6804]
[1725265588166,40.82105991,130.22,130.2,7.6804]
[1725265588462,33.80252955,130.23,130.19,19.2027]
[1725265588960,40.82105991,130.22,130.2,7.6804]
[1725265589272,33.80252955,130.23,130.19,19.2027]
[1725265589469,40.82105991,130.24,130.22,19.1981]
[1725265590345,40.82105991,130.24,130.23,7.6787]
[1725265591459,40.82105991,130.24,130.22,19.1981]
[1725265591782,74.94083226,130.23,130.22,19.1981]
[1725265591963,40.82105991,130.21,130.18,19.203]
[1725265592271,29.94083226,130.26,130.12,22.9635]
[1725265592272,70.76189217,130.19,130.14,19.2088]
[1725265592768,29.94083226,130.17,130.15,7.6831]
[1725265592957,29.94083226,130.17,130.16,7.6828]
[1725265593265,40.82105991,130.15,130.14,19.2088]
[1725265593473,70.76189217,130.15,130.14,19.2088]
[1725265594538,70.76189217,130.15,130.1,19.2149]
[1725265594742,70.76189217,130.15,130.13,7.6846]
[1725265595352,40.82105991,130.13,130.1,19.2149]
[1725265595557,70.76189217,130.15,130.1,19.2149]
[1725265595761,70.76189217,130.15,130.13,7.6846]
[1725265596465,70.76189217,130.15,130.12,7.6851]
[1725265596654,40.82105991,130.13,130.12,7.6851]
[1725265596856,70.76189217,130.15,130.13,7.6843]
[1725265597573,40.82105991,130.15,130.1,19.2149]
[1725265597762,40.82105991,130.2,130.13,38.4225]
[1725265597960,40.82105991,130.17,130.13,38.4225]
[1725265598357,70.76189217,130.15,130.14,19.2086]
[1725265598565,70.76189217,130.15,130.14,26.8926]
[1725265598566,29.94083226,130.15,130.14,26.8926]
[1725265598779,40.82105991,130.17,130.16,7.6828]
[1725265598949,40.82105991,130.19,130.17,19.2045]
[1725265599149,40.82105991,130.19,130.18,7.6816]
[1725265599356,40.82105991,130.15,130.13,19.2102]
[1725265599580,40.82105991,130.19,130.08,44.9751]
[1725265599880,22.2234,130.23,130.19,7.681]
[1725265599881,70.76189217,130.21,130.19,7.681]
[1725265600059,40.82105991,130.18,130.09,16.1209]
[1725265600267,70.76189217,130.18,130.15,19.2075]
[1725265600475,70.76189217,130.16,130.14,7.6835]
[1725265601168,29.94083226,130.2,130.15,19.2085]
[1725265601169,40.82105991,130.18,130.15,19.2085]
[1725265601484,70.76189217,130.2,130.17,7.6822]
[1725265601684,29.94083226,130.2,130.18,19.2039]
[1725265601884,70.76189217,130.2,130.18,19.2039]
[1725265602263,70.76189217,130.2,130.16,7.6823]
[1725265602264,40.82105991,130.18,130.16,7.6823]
[1725265602583,40.82105991,130.18,130.17,7.6822]
[1725265602584,29.94083226,130.18,130.17,7.6822]
[1725265602791,40.82105991,130.2,130.16,19.2057]
[1725265602792,70.76189217,130.2,130.19,7.681]
[1725265603167,40.82105991,130.18,130.17,7.6816]
[1725265603476,70.76189217,130.2,130.18,7.6815]
[1725265603677,74.13326721,130.24,130.19,19.2027]
[1725265603882,70.76189217,130.24,130.23,7.6787]
[1725265604258,70.76189217,130.24,130.22,7.6791]
[1725265604989,40.82105991,130.22,130.21,19.1984]
[1725265605160,70.76189217,130.24,130.22,7.6792]
[1725265605486,70.76189217,130.24,130.23,7.6787]
[1725265606069,40.82105991,130.22,130.21,19.1984]
[1725265606273,70.76189217,130.24,130.21,19.1984]
[1725265606467,70.76189217,130.24,130.22,7.6792]
[1725265606880,70.76189217,130.24,130.23,7.6787]
[1725265607800,40.82105991,130.24,130.23,7.6787]
[1725265609589,40.82105991,130.22,130.21,19.1984]
[1725265611267,115.76189217,130.24,130.22,7.6792]
[1725265611765,70.76189217,130.24,130.22,7.6792]
[1725265612585,70.76189217,130.24,130.23,7.6787]
[1725265613584,40.82105991,130.24,130.23,7.6787]
[1725265613782,70.76189217,130.26,130.24,19.1939]
[1725265615191,70.76189217,130.26,130.23,7.6786]
[1725265615192,40.82105991,130.24,130.23,7.6786]
[1725265615582,40.82105991,130.22,130.21,26.8785]
[1725265615769,115.76189217,130.24,130.22,7.6792]
[1725265615968,40.82105991,130.22,130.21,26.8789]
[1725265616392,40.82105991,130.2,130.18,19.2036]
[1725265617178,40.82105991,130.2,130.19,7.681]
[1725265617591,29.94083226,130.22,130.19,7.681]
[1725265617792,7.6781,130.24,130.16,38.413]
[1725265617793,29.94083226,130.24,130.22,7.6793]
[1725265617997,40.82105991,130.25,130.23,7.6787]
[1725265618378,40.82105991,130.25,130.22,7.6791]
[1725265619078,40.82105991,130.25,130.22,19.1969]
[1725265619278,40.82105991,130.25,130.23,7.6785]
[1725265620099,40.82105991,130.25,130.22,19.1969]
[1725265620279,40.82105991,130.23,130.22,19.1969]
[1725265620597,85.82105991,130.23,130.22,19.1969]
[1725265621299,45.0,130.23,130.22,19.1969]
[1725265621497,40.82105991,130.23,130.22,19.1969]
[1725265621704,70.76189217,130.26,130.22,19.1969]
[1725265621999,70.76189217,130.26,130.23,7.6786]
[1725265622388,40.82105991,130.24,130.23,7.6786]
[1725265623079,70.76189217,130.24,130.2,7.6803]
[1725265623279,115.76189217,130.24,130.2,7.6803]
[1725265623580,40.82105991,130.22,130.2,7.6803]
[1725265623784,45.0,130.23,130.21,7.6797]
[1725265623990,70.76189217,130.26,130.24,7.678]
[1725265624318,70.76189217,130.26,130.23,7.6786]
[1725265624477,40.82105991,130.24,130.22,26.8767]
[1725265624680,70.76189217,130.24,130.22,26.8767]
[1725265625193,70.76189217,130.26,130.23,7.6786]
[1725265625721,70.76189217,130.26,130.22,19.1975]
[1725265625878,11.53629729,130.3,130.24,19.1942]
[1725265625879,40.82105991,130.28,130.24,19.1942]
[1725265626083,40.82105991,130.28,130.26,19.1915]
[1725265626383,0.8374926,130.31,130.29,7.6751]
[1725265627882,0.8374926,130.31,130.27,7.6758]
[1725265627883,40.82105991,130.28,130.27,7.6758]
[1725265628088,70.76189217,130.3,130.27,7.6758]
[1725265628286,29.94083226,130.3,130.28,7.6756]
[1725265628487,0.8374926,130.31,130.28,7.6756]
[1725265629282,40.82105991,130.3,130.25,7.6774]
[1725265629498,40.82105991,130.28,130.25,7.6774]
[1725265629707,70.76189217,130.28,130.25,7.6774]
[1725265630002,70.76189217,130.26,130.23,19.1963]
[1725265630211,40.82105991,130.24,130.21,7.6797]
[1725265630512,70.76189217,130.24,130.21,7.6797]
[1725265630690,70.76189217,130.24,130.2,26.8812]
[1725265630883,70.76189217,130.24,130.17,41.3208]
[1725265631181,70.76189217,130.24,130.19,19.2015]
[1725265631816,29.94083226,130.24,130.22,7.6792]
[1725265631985,45.0,130.25,130.22,7.6792]
[1725265632609,70.76189217,130.24,130.2,7.6799]
[1725265632900,70.76189217,130.24,130.21,7.6798]
[1725265634709,40.82105991,130.22,130.19,26.8821]
[1725265635016,70.76189217,130.22,130.19,26.8821]
[1725265635192,70.76189217,130.22,130.19,19.2015]
[1725265635714,40.82105991,130.17,130.13,13.9746]
[1725265635893,40.82105991,130.17,130.14,7.6839]
[1725265636295,40.82105991,130.17,130.13,26.896]
[1725265636794,37.62253226,130.18,130.14,7.6835]
[1725265636795,29.94083226,130.18,130.14,7.6835]
[1725265636993,40.82105991,130.17,130.14,7.6835]
[1725265637293,29.94083226,130.18,130.13,19.2115]
[1725265637294,29.94083226,130.18,130.15,7.6829]
[1725265637615,70.76189217,130.18,130.14,7.6838]
[1725265638111,78.44349217,130.18,130.13,26.896]
[1725265638618,70.76189217,130.18,130.14,7.684]
[1725265638812,40.82105991,130.16,130.14,7.684]
[1725265640009,40.82105991,130.14,130.1,19.2155]
[1725265640205,29.94083226,130.12,130.1,19.2155]
[1725265640402,70.76189217,130.12,130.08,7.6874]
[1725265641701,70.76189217,130.12,130.09,7.6867]
[1725265641896,70.76189217,130.16,130.09,19.2162]
[1725265642918,40.82105991,130.14,130.09,19.2162]
[1725265643117,70.76189217,130.14,130.1,7.6861]
[1725265643316,70.76189217,130.12,130.09,19.2162]
[1725265643519,78.44719217,130.12,130.06,19.2213]
[1725265643724,70.76189217,130.12,130.07,7.6875]
[1725265643922,70.76189217,130.12,130.08,7.6872]
[1725265644923,70.76189217,130.1,130.06,26.9095]
[1725265645521,70.76189217,130.12,130.08,7.6875]
[1725265647219,70.76189217,130.12,130.09,7.6868]
[1725265647895,70.76189217,130.12,130.08,26.9054]
[1725265648821,40.82105991,130.1,130.08,19.2179]
[1725265649126,70.76189217,130.1,130.08,19.2179]
[1725265651127,40.82105991,130.08,130.05,26.9118]
[1725265651307,40.82105991,130.06,130.05,19.223]
[1725265651632,70.76189217,130.06,130.02,19.2272]
[1725265653008,70.76189217,130.08,130.04,7.6893]
[1725265654011,70.76189217,130.08,130.05,7.6892]
[1725265655224,70.76189217,130.1,130.07,7.6881]
[1725265656223,70.76189217,130.1,130.06,7.6887]
[1725265656932,70.76189217,130.1,130.07,7.6881]
[1725265657707,70.76189217,130.1,130.08,7.6874]
[1725265658219,70.76189217,130.1,130.07,7.688]
[1725265658429,70.76189217,130.1,130.08,7.6873]
[1725265658608,70.76189217,130.12,130.08,7.6873]
[1725265658938,40.82105991,130.1,130.07,7.688]
[1725265660806,40.82105991,130.1,130.08,7.6875]
[1725265661027,40.82105991,130.1,130.07,7.688]
[1725265661732,40.82105991,130.1,130.08,7.6875]
[1725265662641,40.82105991,130.1,130.06,19.2209]
[1725265662932,70.76189217,130.1,130.06,19.2209]
[1725265663236,40.82105991,130.08,130.06,19.2209]
[1725265663431,70.76189217,130.1,130.06,26.9093]
[1725265663734,70.76189217,130.1,130.07,7.6881]
[1725265664738,40.82105991,130.08,130.06,26.9096]
[1725265665331,40.82105991,130.08,130.0,45.1277]
[1725265665332,40.82105991,130.06,130.03,19.2258]
[1725265665828,40.82105991,130.06,130.03,26.9163]
[1725265666040,40.82105991,130.04,130.03,19.2258]
[1725265666334,40.82105991,130.04,130.01,7.6916]
[1725265667417,78.45069217,130.06,130.0,57.6915]
[1725265667623,40.82105991,130.04,130.02,7.691]
[1725265667935,40.82105991,130.04,130.0,57.6915]
[1725265667936,70.76189217,130.04,130.0,19.2302]
[1725265668110,29.94083226,130.02,130.0,19.2302]
[1725265668715,70.76189217,130.02,129.97,19.2346]
[1725265669030,70.76189217,130.02,129.98,7.6934]
[1725265670409,40.82105991,130.06,129.95,38.4758]
[1725265670623,40.82105991,130.06,130.03,7.6904]
[1725265670825,40.82105991,130.04,129.99,19.2317]
[1725265671034,40.82105991,130.04,130.0,7.6918]
[1725265671344,40.82105991,130.04,130.01,7.6916]
[1725265672428,40.82105991,130.04,130.0,7.6921]
[1725265672634,40.82105991,130.04,130.01,19.2279]
[1725265672943,40.82105991,130.06,130.01,19.2279]
[1725265673817,40.82105991,130.08,130.03,19.2252]